[Event "Titled Tuesday Blitz March 01 Late 2022"]
[White "Alfaro, William"]
[Black "Dauner, Benedikt"]
[WhiteFideId "6100457"]
[BlackFideId "16225899"]
[WhiteElo "2066"]
[BlackElo "2230"]
[Result "0-1"]
[Round "06"]
[TimeControl "180+1"]
[Date "2022.03.02"]
[WhiteClock "0:00:15"]
[BlackClock "0:00:12"]

1. d4 {[%clk 0:03:00]}  Nf6 {[%clk 0:02:58]} 2. c4 {[%clk 0:03:00]}  g6 {[%clk 0:02:58]} 3. Nf3 {[%clk 0:03:00]}  Bg7 {[%clk 0:02:58]} 4. Bf4 {[%clk 0:02:59]}  O-O {[%clk 0:02:58]} 5. e3 {[%clk 0:03:00]}  d6 {[%clk 0:02:58]} 6. h3 {[%clk 0:02:59]}  Na6 {[%clk 0:02:59]} 7. Be2 {[%clk 0:02:59]}  c6 {[%clk 0:02:59]} 8. O-O {[%clk 0:02:58]}  Nc7 {[%clk 0:02:59]} 9. Nc3 {[%clk 0:02:58]}  Rb8 {[%clk 0:02:58]} 10. Rc1 {[%clk 0:02:56]}  a6 {[%clk 0:02:58]} 11. a4 {[%clk 0:02:55]}  a5 {[%clk 0:02:57]} 12. Bh2 {[%clk 0:02:46]}  Na6 {[%clk 0:02:57]} 13. Nd2 {[%clk 0:02:42]}  Nb4 {[%clk 0:02:57]} 14. f3 {[%clk 0:02:41]}  Bh6 {[%clk 0:02:52]} 15. f4 {[%clk 0:02:39]}  Ra8 {[%clk 0:02:44]} 16. Kh1 {[%clk 0:02:34]}  Nd7 {[%clk 0:02:40]} 17. Bg1 {[%clk 0:02:31]}  Bg7 {[%clk 0:02:39]} 18. Nf3 {[%clk 0:02:31]}  e5 {[%clk 0:02:36]} 19. dxe5 {[%clk 0:02:21]}  dxe5 {[%clk 0:02:37]} 20. Qd6 {[%clk 0:02:21]}  exf4 {[%clk 0:02:27]} 21. exf4 {[%clk 0:02:20]}  Nf6 {[%clk 0:02:27]} 22. Rfd1 {[%clk 0:02:19]}  Qxd6 {[%clk 0:02:25]} 23. Rxd6 {[%clk 0:02:19]}  Be6 {[%clk 0:02:24]} 24. Ne5 {[%clk 0:02:19]}  Rfd8 {[%clk 0:02:18]} 25. Rcd1 {[%clk 0:02:19]}  Rxd6 {[%clk 0:02:17]} 26. Rxd6 {[%clk 0:02:20]}  Bf8 {[%clk 0:02:18]} 27. Rd1 {[%clk 0:02:15]}  Be7 {[%clk 0:02:06]} 28. Bb6 {[%clk 0:02:14]}  h5 {[%clk 0:01:56]} 29. b3 {[%clk 0:02:12]}  h4 {[%clk 0:01:54]} 30. Bf3 {[%clk 0:02:12]}  Bf5 {[%clk 0:01:49]} 31. Bf2 {[%clk 0:02:08]}  Ne8 {[%clk 0:01:44]} 32. Ne4 {[%clk 0:02:07]}  f6 {[%clk 0:01:32]} 33. Nd7 {[%clk 0:01:51]}  Rd8 {[%clk 0:01:22]} 34. Ndc5 {[%clk 0:01:46]}  Rxd1+ {[%clk 0:01:20]} 35. Bxd1 {[%clk 0:01:47]}  b6 {[%clk 0:01:14]} 36. Bf3 {[%clk 0:01:01]}  bxc5 {[%clk 0:01:11]} 37. Nxc5 {[%clk 0:01:02]}  Nd3 {[%clk 0:01:06]} 38. Nxd3 {[%clk 0:00:59]}  Bxd3 {[%clk 0:01:07]} 39. Bxc6 {[%clk 0:00:59]}  Nd6 {[%clk 0:01:06]} 40. Bxh4 {[%clk 0:00:55]}  Nf5 {[%clk 0:01:06]} 41. Bf2 {[%clk 0:00:54]}  Bc2 {[%clk 0:01:06]} 42. Bd5+ {[%clk 0:00:54]}  Kf8 {[%clk 0:01:03]} 43. c5 {[%clk 0:00:53]}  Bd8 {[%clk 0:00:40]} 44. Be6 {[%clk 0:00:24]}  Ne7 {[%clk 0:00:35]} 45. Bd4 {[%clk 0:00:22]}  Nc6 {[%clk 0:00:33]} 46. Bc3 {[%clk 0:00:20]}  Nb4 {[%clk 0:00:31]} 47. Bc4 {[%clk 0:00:18]}  Be4 {[%clk 0:00:28]} 48. Kg1 {[%clk 0:00:17]}  Bc6 {[%clk 0:00:27]} 49. Kf2 {[%clk 0:00:17]}  Be7 {[%clk 0:00:26]} 50. Bd4 {[%clk 0:00:17]}  Nc2 {[%clk 0:00:25]} 51. Bc3 {[%clk 0:00:14]}  Bxc5+ {[%clk 0:00:24]} 52. Ke2 {[%clk 0:00:15]}  Nb4 {[%clk 0:00:16]} 53. g4 {[%clk 0:00:14]}  f5 {[%clk 0:00:15]} 54. gxf5 {[%clk 0:00:14]}  gxf5 {[%clk 0:00:16]} 55. Be6 {[%clk 0:00:14]}  Be4 {[%clk 0:00:16]} 56. Bf6 {[%clk 0:00:15]}  Nc2 {[%clk 0:00:12]} 57. h4 {[%clk 0:00:15]}  Nd4+ {[%clk 0:00:12]} 58. Bxd4 {[%clk 0:00:16]}  Bxd4 {[%clk 0:00:13]} 59. h5 {[%clk 0:00:16]}  Kg7 {[%clk 0:00:12]} 60. Bc4 {[%clk 0:00:14]}  Bc5 {[%clk 0:00:12]} 61. Kd2 {[%clk 0:00:13]}  Kh6 {[%clk 0:00:11]} 62. Bf7 {[%clk 0:00:13]}  Bb4+ {[%clk 0:00:11]} 63. Ke3 {[%clk 0:00:14]}  Bc2 {[%clk 0:00:10]} 64. Kd4 {[%clk 0:00:14]}  Bd1 {[%clk 0:00:10]} 65. Ke5 {[%clk 0:00:14]}  Bg4 {[%clk 0:00:10]} 66. Bg6 {[%clk 0:00:14]}  Bc3+ {[%clk 0:00:10]} 67. Ke6 {[%clk 0:00:14]}  Bd2 {[%clk 0:00:09]} 68. Bxf5 {[%clk 0:00:13]}  Bxf5+ {[%clk 0:00:07]} 69. Kxf5 {[%clk 0:00:14]}  Kxh5 {[%clk 0:00:08]} 70. Ke5 {[%clk 0:00:14]}  Kg6 {[%clk 0:00:08]} 71. f5+ {[%clk 0:00:14]}  Kf7 {[%clk 0:00:08]} 72. Kd5 {[%clk 0:00:12]}  Kf6 {[%clk 0:00:07]} 73. Ke4 {[%clk 0:00:13]}  Bb4 {[%clk 0:00:07]} 74. Kf4 {[%clk 0:00:12]}  Bd6+ {[%clk 0:00:07]} 75. Ke4 {[%clk 0:00:13]}  Be5 {[%clk 0:00:05]} 76. Kd5 {[%clk 0:00:13]}  Kxf5 {[%clk 0:00:05]} 77. Kc4 {[%clk 0:00:14]}  Bd6 {[%clk 0:00:05]} 78. Kb5 {[%clk 0:00:12]}  Bb4 {[%clk 0:00:05]} 79. Kc4 {[%clk 0:00:13]}  Ke4 {[%clk 0:00:06]} 80. Kb5 {[%clk 0:00:12]}  Kd3 {[%clk 0:00:07]} 81. Kc6 {[%clk 0:00:12]}  Kc2 {[%clk 0:00:07]} 82. Kb5 {[%clk 0:00:12]}  Kxb3 {[%clk 0:00:08]} 83. Ka6 {[%clk 0:00:12]}  Kxa4 {[%clk 0:00:08]} 84. Kb6 {[%clk 0:00:12]}  Kb3 {[%clk 0:00:09]} 85. Ka6 {[%clk 0:00:13]}  a4 {[%clk 0:00:10]} 86. Kb6 {[%clk 0:00:13]}  a3 {[%clk 0:00:10]} 87. Kb5 {[%clk 0:00:14]}  a2 {[%clk 0:00:11]} 88. Kb6 {[%clk 0:00:15]}  a1=Q {[%clk 0:00:12]} 0-1


[Site "https://www.chess.com"]

[Event "Titled Tuesday Blitz March 01 Late 2022"]
[White "Antonio, Jorge Carlos"]
[Black "Gatterer, Florian"]
[WhiteFideId "113190"]
[BlackFideId "811688"]
[WhiteElo "2247"]
[BlackElo "2218"]
[Result "1-0"]
[Round "06"]
[TimeControl "180+1"]
[Date "2022.03.02"]
[WhiteClock "0:00:24"]
[BlackClock "0:00:02"]

1. e4 {[%clk 0:03:00]}  c5 {[%clk 0:02:59]} 2. f4 {[%clk 0:02:59]}  d5 {[%clk 0:02:58]} 3. e5 {[%clk 0:02:59]}  Nc6 {[%clk 0:02:58]} 4. Nf3 {[%clk 0:02:58]}  Nh6 {[%clk 0:02:54]} 5. c3 {[%clk 0:02:57]}  Bg4 {[%clk 0:02:53]} 6. h3 {[%clk 0:02:53]}  Bxf3 {[%clk 0:02:51]} 7. Qxf3 {[%clk 0:02:53]}  e6 {[%clk 0:02:51]} 8. g4 {[%clk 0:02:49]}  Be7 {[%clk 0:02:49]} 9. d3 {[%clk 0:02:46]}  Bh4+ {[%clk 0:02:49]} 10. Kd1 {[%clk 0:02:41]}  Be7 {[%clk 0:02:48]} 11. Bg2 {[%clk 0:02:36]}  O-O {[%clk 0:02:47]} 12. Nd2 {[%clk 0:02:33]}  f5 {[%clk 0:02:41]} 13. exf6 {[%clk 0:02:30]}  Bxf6 {[%clk 0:02:38]} 14. Qe2 {[%clk 0:02:26]}  e5 {[%clk 0:02:27]} 15. g5 {[%clk 0:02:23]}  exf4 {[%clk 0:02:26]} 16. Qe6+ {[%clk 0:02:18]}  Kh8 {[%clk 0:02:25]} 17. gxh6 {[%clk 0:02:16]}  d4 {[%clk 0:02:06]} 18. Bxc6 {[%clk 0:02:11]}  bxc6 {[%clk 0:02:04]} 19. c4 {[%clk 0:02:05]}  Re8 {[%clk 0:02:00]} 20. Qxc6 {[%clk 0:02:04]}  Re3 {[%clk 0:02:00]} 21. Kc2 {[%clk 0:01:56]}  Rb8 {[%clk 0:01:43]} 22. hxg7+ {[%clk 0:01:55]}  Bxg7 {[%clk 0:01:41]} 23. Ne4 {[%clk 0:01:50]}  f3 {[%clk 0:01:20]} 24. Bd2 {[%clk 0:01:43]}  Rc8 {[%clk 0:00:59]} 25. Qd5 {[%clk 0:01:37]}  Qe8 {[%clk 0:00:49]} 26. Nd6 {[%clk 0:01:29]}  Qg6 {[%clk 0:00:27]} 27. Ne4 {[%clk 0:01:14]}  Re8 {[%clk 0:00:20]} 28. Rhg1 {[%clk 0:01:10]}  Qa6 {[%clk 0:00:15]} 29. Rxg7 {[%clk 0:01:09]}  R3xe4 {[%clk 0:00:14]} 30. dxe4 {[%clk 0:00:43]}  d3+ {[%clk 0:00:13]} 31. Kxd3 {[%clk 0:00:38]}  Kxg7 {[%clk 0:00:12]} 32. Rg1+ {[%clk 0:00:31]}  Kf8 {[%clk 0:00:09]} 33. Qf5+ {[%clk 0:00:30]}  Ke7 {[%clk 0:00:07]} 34. Rg7+ {[%clk 0:00:28]}  Kd6 {[%clk 0:00:08]} 35. Qf6+ {[%clk 0:00:27]}  Re6 {[%clk 0:00:05]} 36. Qd8+ {[%clk 0:00:26]}  Kc6 {[%clk 0:00:04]} 37. Qd5+ {[%clk 0:00:24]}  Kb6 {[%clk 0:00:02]} 38. Qxe6# {[%clk 0:00:24]} 1-0


[Site "https://www.chess.com"]

[Event "Titled Tuesday Blitz March 01 Late 2022"]
[White "Aukhatov, Roman"]
[Black "Kamsky, Gata"]
[WhiteFideId "44150768"]
[BlackFideId "2000024"]
[WhiteElo "2112"]
[BlackElo "2645"]
[Result "0-1"]
[Round "06"]
[TimeControl "180+1"]
[Date "2022.03.01"]
[WhiteClock "0:01:38"]
[BlackClock "0:01:44"]

1. Nf3 {[%clk 0:02:58]}  Nf6 {[%clk 0:02:59]} 2. c4 {[%clk 0:02:57]}  c6 {[%clk 0:02:59]} 3. d4 {[%clk 0:02:57]}  d5 {[%clk 0:02:59]} 4. g3 {[%clk 0:02:54]}  g6 {[%clk 0:02:59]} 5. Bg2 {[%clk 0:02:53]}  Bg7 {[%clk 0:02:59]} 6. b3 {[%clk 0:02:53]}  O-O {[%clk 0:02:59]} 7. Bb2 {[%clk 0:02:54]}  a5 {[%clk 0:02:56]} 8. Nc3 {[%clk 0:02:53]}  Bf5 {[%clk 0:02:55]} 9. O-O {[%clk 0:02:52]}  Ne4 {[%clk 0:02:54]} 10. Rc1 {[%clk 0:02:49]}  Nxc3 {[%clk 0:02:51]} 11. Bxc3 {[%clk 0:02:49]}  Be4 {[%clk 0:02:52]} 12. Re1 {[%clk 0:02:38]}  e6 {[%clk 0:02:51]} 13. Bb2 {[%clk 0:02:34]}  Nd7 {[%clk 0:02:51]} 14. Ba3 {[%clk 0:02:34]}  Re8 {[%clk 0:02:50]} 15. Bd6 {[%clk 0:02:31]}  a4 {[%clk 0:02:34]} 16. cxd5 {[%clk 0:02:22]}  exd5 {[%clk 0:02:32]} 17. b4 {[%clk 0:02:21]}  Nb6 {[%clk 0:02:28]} 18. Be5 {[%clk 0:02:18]}  f6 {[%clk 0:02:24]} 19. Bf4 {[%clk 0:02:16]}  Nc4 {[%clk 0:02:24]} 20. Nd2 {[%clk 0:02:12]}  Nb2 {[%clk 0:02:21]} 21. Nxe4 {[%clk 0:02:06]}  Nxd1 {[%clk 0:02:21]} 22. Nd6 {[%clk 0:02:01]}  Nb2 {[%clk 0:02:20]} 23. Nxb7 {[%clk 0:01:57]}  Qb6 {[%clk 0:02:18]} 24. Nd6 {[%clk 0:01:56]}  Qxb4 {[%clk 0:01:53]} 25. Nxe8 {[%clk 0:01:47]}  Rxe8 {[%clk 0:01:52]} 26. e4 {[%clk 0:01:44]}  Nd3 {[%clk 0:01:44]} 27. Rb1 {[%clk 0:01:38]}  Qxe1+ {[%clk 0:01:44]} 28. Rxe1 {[%clk 0:01:38]}  Nxe1 {[%clk 0:01:44]} 0-1


[Site "https://www.chess.com"]

[Event "Titled Tuesday Blitz March 01 Late 2022"]
[White "Beerdsen, Thomas"]
[Black "Kollars, Dmitrij"]
[WhiteFideId "1030108"]
[BlackFideId "12909572"]
[WhiteElo "2585"]
[BlackElo "2584"]
[Result "1-0"]
[Round "06"]
[TimeControl "180+1"]
[Date "2022.03.01"]
[WhiteClock "0:00:05"]
[BlackClock "0:00:02"]

1. e4 {[%clk 0:03:00]}  c5 {[%clk 0:02:58]} 2. Nf3 {[%clk 0:02:58]}  d6 {[%clk 0:02:59]} 3. d4 {[%clk 0:02:59]}  cxd4 {[%clk 0:03:00]} 4. Nxd4 {[%clk 0:02:59]}  Nf6 {[%clk 0:02:59]} 5. Nc3 {[%clk 0:03:00]}  Nc6 {[%clk 0:02:59]} 6. Nd5 {[%clk 0:03:00]}  Nxd5 {[%clk 0:02:50]} 7. exd5 {[%clk 0:03:01]}  Qa5+ {[%clk 0:02:50]} 8. Bd2 {[%clk 0:03:02]}  Qxd5 {[%clk 0:02:50]} 9. Nb5 {[%clk 0:03:02]}  Qe6+ {[%clk 0:02:51]} 10. Be2 {[%clk 0:03:03]}  Qd7 {[%clk 0:02:51]} 11. O-O {[%clk 0:03:03]}  a6 {[%clk 0:02:40]} 12. Nc3 {[%clk 0:03:03]}  e6 {[%clk 0:02:40]} 13. Na4 {[%clk 0:03:03]}  Qc7 {[%clk 0:02:31]} 14. Be3 {[%clk 0:03:04]}  Be7 {[%clk 0:02:25]} 15. Nb6 {[%clk 0:03:03]}  Rb8 {[%clk 0:02:25]} 16. c4 {[%clk 0:03:03]}  O-O {[%clk 0:02:25]} 17. Rc1 {[%clk 0:03:02]}  Bd7 {[%clk 0:02:10]} 18. f4 {[%clk 0:03:00]}  Bf6 {[%clk 0:02:07]} 19. b3 {[%clk 0:02:56]}  Ne7 {[%clk 0:02:07]} 20. g4 {[%clk 0:02:51]}  g6 {[%clk 0:02:07]} 21. b4 {[%clk 0:02:18]}  Bg7 {[%clk 0:02:03]} 22. a4 {[%clk 0:02:17]}  Rbd8 {[%clk 0:01:35]} 23. Qb3 {[%clk 0:02:08]}  Nc6 {[%clk 0:01:23]} 24. Rfd1 {[%clk 0:02:04]}  Nd4 {[%clk 0:01:19]} 25. Rxd4 {[%clk 0:01:59]}  Qxb6 {[%clk 0:01:19]} 26. Rcd1 {[%clk 0:01:47]}  Bxd4 {[%clk 0:01:12]} 27. Bxd4 {[%clk 0:01:48]}  Qc7 {[%clk 0:01:13]} 28. Bf6 {[%clk 0:01:47]}  e5 {[%clk 0:01:08]} 29. Qe3 {[%clk 0:01:22]}  h6 {[%clk 0:00:22]} 30. fxe5 {[%clk 0:01:03]}  dxe5 {[%clk 0:00:20]} 31. c5 {[%clk 0:01:00]}  Kh7 {[%clk 0:00:19]} 32. Rd3 {[%clk 0:00:55]}  Bxg4 {[%clk 0:00:15]} 33. Bxd8 {[%clk 0:00:34]}  Rxd8 {[%clk 0:00:16]} 34. Rxd8 {[%clk 0:00:35]}  Qxd8 {[%clk 0:00:16]} 35. Bxg4 {[%clk 0:00:35]}  Qh4 {[%clk 0:00:13]} 36. Qe4 {[%clk 0:00:23]}  Qg5 {[%clk 0:00:13]} 37. Kf1 {[%clk 0:00:16]}  Kg7 {[%clk 0:00:11]} 38. Be2 {[%clk 0:00:13]}  Qc1+ {[%clk 0:00:11]} 39. Kf2 {[%clk 0:00:13]}  Qc3 {[%clk 0:00:07]} 40. Qe3 {[%clk 0:00:12]}  Qxb4 {[%clk 0:00:05]} 41. Qxe5+ {[%clk 0:00:12]}  Kh7 {[%clk 0:00:06]} 42. Ke3 {[%clk 0:00:11]}  Qxa4 {[%clk 0:00:06]} 43. Qd5 {[%clk 0:00:08]}  Qa3+ {[%clk 0:00:05]} 44. Bd3 {[%clk 0:00:08]}  Kg7 {[%clk 0:00:05]} 45. Qd4+ {[%clk 0:00:09]}  Kg8 {[%clk 0:00:04]} 46. Qd8+ {[%clk 0:00:09]}  Kg7 {[%clk 0:00:05]} 47. Qd4+ {[%clk 0:00:09]}  Kg8 {[%clk 0:00:05]} 48. h4 {[%clk 0:00:09]}  Qc1+ {[%clk 0:00:05]} 49. Ke4 {[%clk 0:00:10]}  Qh1+ {[%clk 0:00:05]} 50. Ke5 {[%clk 0:00:10]}  Qh2+ {[%clk 0:00:05]} 51. Kd5 {[%clk 0:00:10]}  Qc7 {[%clk 0:00:05]} 52. Kc4 {[%clk 0:00:10]}  Qc6 {[%clk 0:00:05]} 53. Kc3 {[%clk 0:00:09]}  Qc7 {[%clk 0:00:04]} 54. h5 {[%clk 0:00:09]}  gxh5 {[%clk 0:00:04]} 55. Bc4 {[%clk 0:00:07]}  Qa5+ {[%clk 0:00:04]} 56. Kb3 {[%clk 0:00:07]}  Qc7 {[%clk 0:00:05]} 57. Qd5 {[%clk 0:00:06]}  Qg3+ {[%clk 0:00:05]} 58. Kb4 {[%clk 0:00:06]}  Qf2 {[%clk 0:00:05]} 59. Ka5 {[%clk 0:00:05]}  h4 {[%clk 0:00:03]} 60. Kb6 {[%clk 0:00:05]}  h3 {[%clk 0:00:03]} 61. Kxb7 {[%clk 0:00:05]}  h2 {[%clk 0:00:04]} 62. c6 {[%clk 0:00:05]}  Qb2+ {[%clk 0:00:04]} 63. Ka8 {[%clk 0:00:04]}  Qf6 {[%clk 0:00:02]} 64. c7 {[%clk 0:00:05]}  Qe6 {[%clk 0:00:02]} 65. Qxe6 {[%clk 0:00:03]}  h1=Q+ {[%clk 0:00:02]} 66. Qd5 {[%clk 0:00:03]}  Qh3 {[%clk 0:00:03]} 67. Qxf7+ {[%clk 0:00:04]}  Kh8 {[%clk 0:00:02]} 68. Qg8# {[%clk 0:00:05]} 1-0


[Site "https://www.chess.com"]

[Event "Titled Tuesday Blitz March 01 Late 2022"]
[White "Bryakin, Mikhail"]
[Black "Bellissimo, Joseph F."]
[WhiteFideId "4165314"]
[BlackFideId "2609843"]
[WhiteElo "2421"]
[BlackElo "2061"]
[Result "0-1"]
[Round "06"]
[TimeControl "180+1"]
[Date "2022.03.01"]
[WhiteClock "0:00:14"]
[BlackClock "0:00:20"]

1. e4 {[%clk 0:02:59]}  e6 {[%clk 0:03:00]} 2. d4 {[%clk 0:02:55]}  d5 {[%clk 0:03:00]} 3. Bd3 {[%clk 0:02:56]}  Nf6 {[%clk 0:03:00]} 4. f3 {[%clk 0:02:54]}  c5 {[%clk 0:02:59]} 5. e5 {[%clk 0:02:53]}  Nfd7 {[%clk 0:02:59]} 6. c3 {[%clk 0:02:53]}  Nc6 {[%clk 0:02:58]} 7. Ne2 {[%clk 0:02:54]}  Qb6 {[%clk 0:02:54]} 8. Bc2 {[%clk 0:02:49]}  f6 {[%clk 0:02:50]} 9. f4 {[%clk 0:02:48]}  cxd4 {[%clk 0:02:51]} 10. cxd4 {[%clk 0:02:48]}  Bb4+ {[%clk 0:02:51]} 11. Nbc3 {[%clk 0:02:48]}  O-O {[%clk 0:02:51]} 12. Qd3 {[%clk 0:02:44]}  g6 {[%clk 0:02:43]} 13. h4 {[%clk 0:02:43]}  fxe5 {[%clk 0:02:43]} 14. fxe5 {[%clk 0:02:43]}  Ndxe5 {[%clk 0:02:33]} 15. dxe5 {[%clk 0:02:42]}  Nxe5 {[%clk 0:02:34]} 16. Qd4 {[%clk 0:02:37]}  Qd6 {[%clk 0:02:23]} 17. Bf4 {[%clk 0:02:36]}  Rxf4 {[%clk 0:02:18]} 18. Qxf4 {[%clk 0:02:21]}  Bd7 {[%clk 0:02:18]} 19. h5 {[%clk 0:02:17]}  Rf8 {[%clk 0:02:17]} 20. Qg5 {[%clk 0:02:11]}  d4 {[%clk 0:01:59]} 21. O-O-O {[%clk 0:01:56]}  Qc5 {[%clk 0:01:49]} 22. Nxd4 {[%clk 0:01:43]}  Nd3+ {[%clk 0:01:48]} 23. Rxd3 {[%clk 0:01:39]}  Qxg5+ {[%clk 0:01:49]} 24. Kb1 {[%clk 0:01:40]}  Qxg2 {[%clk 0:01:39]} 25. Rdd1 {[%clk 0:01:41]}  e5 {[%clk 0:01:29]} 26. Rdg1 {[%clk 0:01:31]}  Qxh1 {[%clk 0:01:15]} 27. Rxh1 {[%clk 0:01:32]}  exd4 {[%clk 0:01:16]} 28. Nd5 {[%clk 0:01:21]}  Bc6 {[%clk 0:01:10]} 29. Bb3 {[%clk 0:01:14]}  Bxd5 {[%clk 0:01:05]} 30. Bxd5+ {[%clk 0:01:14]}  Kg7 {[%clk 0:01:06]} 31. hxg6 {[%clk 0:01:15]}  hxg6 {[%clk 0:01:05]} 32. Bxb7 {[%clk 0:01:15]}  d3 {[%clk 0:01:02]} 33. Be4 {[%clk 0:01:12]}  d2 {[%clk 0:01:02]} 34. a3 {[%clk 0:01:09]}  Ba5 {[%clk 0:00:57]} 35. Rd1 {[%clk 0:01:07]}  Re8 {[%clk 0:00:51]} 36. Bf3 {[%clk 0:00:56]}  Re3 {[%clk 0:00:49]} 37. Bg4 {[%clk 0:00:55]}  Kf6 {[%clk 0:00:41]} 38. Kc2 {[%clk 0:00:48]}  Kg5 {[%clk 0:00:38]} 39. Bd7 {[%clk 0:00:48]}  Kf4 {[%clk 0:00:28]} 40. b4 {[%clk 0:00:40]}  Bb6 {[%clk 0:00:27]} 41. a4 {[%clk 0:00:40]}  Re4 {[%clk 0:00:25]} 42. Rxd2 {[%clk 0:00:33]}  Rxb4 {[%clk 0:00:25]} 43. Rg2 {[%clk 0:00:33]}  Rc4+ {[%clk 0:00:20]} 44. Kb3 {[%clk 0:00:33]}  Rd4 {[%clk 0:00:20]} 45. Bc8 {[%clk 0:00:32]}  Rd6 {[%clk 0:00:17]} 46. Rg4+ {[%clk 0:00:24]}  Ke5 {[%clk 0:00:17]} 47. Rg2 {[%clk 0:00:20]}  Be3 {[%clk 0:00:16]} 48. Rg3 {[%clk 0:00:13]}  Bf4 {[%clk 0:00:15]} 49. Rg1 {[%clk 0:00:12]}  g5 {[%clk 0:00:15]} 50. Bg4 {[%clk 0:00:11]}  Be3 {[%clk 0:00:15]} 51. Rf1 {[%clk 0:00:10]}  Ke4 {[%clk 0:00:13]} 52. Bf5+ {[%clk 0:00:10]}  Ke5 {[%clk 0:00:11]} 53. Bc8 {[%clk 0:00:09]}  Rb6+ {[%clk 0:00:11]} 54. Ka2 {[%clk 0:00:09]}  Rc6 {[%clk 0:00:11]} 55. Bg4 {[%clk 0:00:09]}  Rc3 {[%clk 0:00:11]} 56. Bd7 {[%clk 0:00:09]}  Kd6 {[%clk 0:00:11]} 57. Be8 {[%clk 0:00:08]}  Kc5 {[%clk 0:00:11]} 58. Rf5+ {[%clk 0:00:07]}  Kb4 {[%clk 0:00:11]} 59. Rb5+ {[%clk 0:00:06]}  Kc4 {[%clk 0:00:11]} 60. Rf5 {[%clk 0:00:05]}  Bf4 {[%clk 0:00:10]} 61. Bb5+ {[%clk 0:00:04]}  Kb4 {[%clk 0:00:10]} 62. Rd5 {[%clk 0:00:02]}  Bc1 {[%clk 0:00:09]} 63. Kb1 {[%clk 0:00:03]}  Ba3 {[%clk 0:00:09]} 64. Rxg5 {[%clk 0:00:03]}  Kb3 {[%clk 0:00:09]} 65. Rg1 {[%clk 0:00:03]}  Rc2 {[%clk 0:00:09]} 66. Rg3+ {[%clk 0:00:03]}  Rc3 {[%clk 0:00:09]} 67. Rg1 {[%clk 0:00:04]}  Re3 {[%clk 0:00:08]} 68. Bd7 {[%clk 0:00:03]}  Re2 {[%clk 0:00:08]} 69. Rg3+ {[%clk 0:00:03]}  Kb4 {[%clk 0:00:09]} 70. Bb5 {[%clk 0:00:03]}  Rb2+ {[%clk 0:00:09]} 71. Ka1 {[%clk 0:00:04]}  Rf2 {[%clk 0:00:07]} 72. Kb1 {[%clk 0:00:04]}  Rd2 {[%clk 0:00:06]} 73. Rg4+ {[%clk 0:00:04]}  Ka5 {[%clk 0:00:05]} 74. Rh4 {[%clk 0:00:04]}  Bb4 {[%clk 0:00:05]} 75. Rh3 {[%clk 0:00:04]}  a6 {[%clk 0:00:04]} 76. Be8 {[%clk 0:00:03]}  Bc5 {[%clk 0:00:04]} 77. Bc6 {[%clk 0:00:03]}  Bd4 {[%clk 0:00:04]} 78. Kc1 {[%clk 0:00:04]}  Ra2 {[%clk 0:00:04]} 79. Kd1 {[%clk 0:00:04]}  Ra1+ {[%clk 0:00:04]} 80. Ke2 {[%clk 0:00:04]}  Ra2+ {[%clk 0:00:05]} 81. Kd1 {[%clk 0:00:04]}  Rb2 {[%clk 0:00:05]} 82. Be8 {[%clk 0:00:04]}  Kb4 {[%clk 0:00:05]} 83. Rd3 {[%clk 0:00:04]}  Kc5 {[%clk 0:00:05]} 84. Rf3 {[%clk 0:00:04]}  a5 {[%clk 0:00:06]} 85. Bb5 {[%clk 0:00:04]}  Kb4 {[%clk 0:00:06]} 86. Kc1 {[%clk 0:00:04]}  Bc3 {[%clk 0:00:07]} 87. Rf4+ {[%clk 0:00:05]}  Kb3 {[%clk 0:00:07]} 88. Bc4+ {[%clk 0:00:05]}  Ka3 {[%clk 0:00:07]} 89. Bb5 {[%clk 0:00:05]}  Bd2+ {[%clk 0:00:07]} 90. Kd1 {[%clk 0:00:06]}  Bxf4 {[%clk 0:00:08]} 91. Bd7 {[%clk 0:00:06]}  Bd6 {[%clk 0:00:09]} 92. Bb5 {[%clk 0:00:07]}  Bb4 {[%clk 0:00:10]} 93. Kc1 {[%clk 0:00:06]}  Rh2 {[%clk 0:00:11]} 94. Kd1 {[%clk 0:00:07]}  Kb3 {[%clk 0:00:12]} 95. Kc1 {[%clk 0:00:07]}  Kc3 {[%clk 0:00:12]} 96. Kd1 {[%clk 0:00:07]}  Rh1+ {[%clk 0:00:13]} 97. Ke2 {[%clk 0:00:08]}  Ra1 {[%clk 0:00:13]} 98. Ke3 {[%clk 0:00:08]}  Kb3 {[%clk 0:00:13]} 99. Kd3 {[%clk 0:00:09]}  Rxa4 {[%clk 0:00:14]} 100. Bxa4+ {[%clk 0:00:09]}  Kxa4 {[%clk 0:00:15]} 101. Kc2 {[%clk 0:00:09]}  Ka3 {[%clk 0:00:15]} 102. Kb1 {[%clk 0:00:10]}  Kb3 {[%clk 0:00:16]} 103. Ka1 {[%clk 0:00:11]}  a4 {[%clk 0:00:17]} 104. Kb1 {[%clk 0:00:12]}  a3 {[%clk 0:00:17]} 105. Ka1 {[%clk 0:00:13]}  Bc3+ {[%clk 0:00:18]} 106. Kb1 {[%clk 0:00:13]}  a2+ {[%clk 0:00:19]} 107. Kc1 {[%clk 0:00:14]}  a1=Q# {[%clk 0:00:20]} 0-1


[Site "https://www.chess.com"]